Cogmind - Beta 10.2 @@@ ROGUE MODE // 2020.11.05 @ 17:52:58 // Halloween2020/ForbiddenLore Player: derk Result: Destroyed by S-27 Virus with Autogun Performance ------------- Evolutions (3) 1500 Regions Visited (11) 2200 Robots Destroyed (137) 685 Value Destroyed (4290) 4290 Prototype IDs (50) 1000 Alien Tech Used (0) 0 Bonus (1129) 1129 TOTAL SCORE: 10804 Bonus ------- Follower Combat Kills 68 Aligned with FarCom 300 Triggered Deep Caves Wall 500 Exposed GOLEM Chamber 500 Friendly Fire -239 Cogmind --------- Core Integrity 0/700 Matter 300/300 Energy 1100/1100 System Corruption 0% Temperature Cool (0) Movement Walking (169) Ox1 Location -6/Proximity Caves Parts ------- > --- POWER (1) -------- Zionite Light DM Reactor > --- PROPULSION (3) --- Zionite Composite Leg I Assembled Alloy Leg Assembled Alloy Leg > --- UTILITY (7) ------ High-capacity Storage Unit High-capacity Storage Unit High-capacity Storage Unit Assembled Biocell Array Experimental Sensor Array Thief Drone Bay (1/3) > --- WEAPON (2) ------- Assembled Focal Cannon Assembled Focal Cannon > --- INVENTORY (28) --- Armored Treads Advanced Treads Carbon-fiber Leg Improved Cooling System Zionite Biocell (1000) Surveybot 24 Scanner Surveybot 24 Chip Weapon Cycler Makeshift Hacking Suite Makeshift Hacking Suite Makeshift System Shield Mobile Refinery Mk. CCLXVII GOLEM Unit GOLEM Unit GOLEM Unit GOLEM Unit Shock Rifle Heavy Ion Cannon Firepult 12-ASH's Boomstick Ripper Peak State ------------ > --- POWER ------------ Zionite Light DM Reactor > --- PROPULSION ------- Zionite Composite Leg I Assembled Alloy Leg Assembled Alloy Leg > --- UTILITY ---------- Assembled Nanovents Assembled Nanovents High-capacity Storage Unit High-capacity Storage Unit Assembled Biocell Array GOLEM Unit > --- WEAPON ----------- Assembled Focal Cannon 12-ASH's Boomstick > --- INVENTORY -------- Improved Cooling System Zionite Biocell Experimental Sensor Array Surveybot 24 Chip Weapon Cycler Zionite Light Carapace Makeshift Hacking Suite Makeshift Hacking Suite Makeshift System Shield Mobile Refinery Mk. CCLXVII Thief Drone Bay GOLEM Unit GOLEM Unit GOLEM Unit GOLEM Unit [Rating: 107] Favorites ----------- Power Enhanced Nuclear Core Engine Improved Ion Engine Power Core Enhanced Nuclear Core Reactor Zionite Light DM Reactor Propulsion Improved Treads Treads Improved Treads Leg Assembled Alloy Leg Wheel Wheel Utility High-capacity Storage Unit Device Weapon Cycler Storage High-capacity Storage Unit Processor Target Analyzer Hackware System Shield Protection Hardened Heavy Armor Plating Weapon Gauss Rifle Energy Gun EM Pulse Gun Energy Cannon Advanced Beam Cannon Ballistic Gun Gauss Rifle Ballistic Cannon Light Cannon Launcher Heavy Missile Launcher Impact Weapon Heavy Mace Slashing Weapon Ripper Build | -11 -10 -10 -10 -9 -8 -7 -7 -7 -7 -7 -6 ------- Run | Scr Mat Min Exi Min Mat Fac Low Low Zio Dee Pro Slots Evolved 6 | . . . . . 4 2 . . . . . Power . | . . . . . . . . . . . . Propulsion 1 | . . . . . 1 . . . . . . Utility 5 | . . . . . 3 2 . . . . . Weapon . | . . . . . . . . . . . . Parts Attached 192 | 6 6 1 1 7 59 30 15 2 16 37 12 Power 12 | 1 1 . . 1 3 2 . . 1 2 1 Engine 7 | 1 1 . . . 3 1 . . 1 . . Core 2 | . . . . 1 . 1 . . . . . Reactor 3 | . . . . . . . . . . 2 1 Propulsion 42 | 2 1 . . 4 15 3 6 2 1 6 2 Treads 33 | 2 1 . . 3 10 3 6 2 1 4 1 Leg 8 | . . . . . 5 . . . . 2 1 Wheel 1 | . . . . 1 . . . . . . . Hover . | . . . . . . . . . . . . Flight . | . . . . . . . . . . . . Utility 85 | 1 3 . 1 . 25 13 4 . 10 19 9 Device 40 | . . . . . 13 4 2 . 8 7 6 Storage 17 | 1 3 . 1 . 5 4 . . 1 1 1 Processor 2 | . . . . . 1 1 . . . . . Hackware 3 | . . . . . 1 2 . . . . . Protection 23 | . . . . . 5 2 2 . 1 11 2 Artifact . | . . . . . . . . . . . . Weapon 53 | 2 1 1 . 2 16 12 5 . 4 10 . Energy Gun 15 | 1 . . . . 6 4 . . . 4 . Energy Cannon 7 | . . . . . 3 4 . . . . . Ballistic Gun 20 | 1 1 . . . 7 3 3 . 2 3 . Ballistic Cannon 2 | . . 1 . 1 . . . . . . . Launcher 3 | . . . . 1 . . . . 1 1 . Special Weapon . | . . . . . . . . . . . . Impact Weapon 2 | . . . . . . 1 1 . . . . Slashing Weapon 4 | . . . . . . . 1 . 1 2 . Piercing Weapon . | . . . . . . . . . . . . Special Melee Weapon . | . . . . . . . . . . . . Unidentified Prototypes 23 | . . . . . 6 5 . . 5 7 . Parts Lost 33 | . . 1 . 5 5 1 3 . . 14 4 Power 4 | . . . . . 2 . . . . 1 1 Propulsion 9 | . . . . 3 1 . 1 . . 4 . Utility 13 | . . . . . 2 1 2 . . 5 3 Weapon 7 | . . 1 . 2 . . . . . 4 . Highest Loss Streak 13 | . . 1 . 5 2 1 1 . . 13 1 Average Slot Usage (%) 94 | . 97 100 100 100 96 99 92 92 92 90 93 Engine 3 | . 14 14 14 2 6 3 . . 1 1 . Core 3 | . . . . 11 2 3 7 7 5 . . Reactor 1 | . . . . . . . . . . 5 6 Treads 21 | . 27 28 28 26 17 22 22 23 23 17 . Leg 2 | . . . . . 8 . . . . 4 22 Device 10 | . . . . . 5 9 14 15 11 16 12 Storage 23 | . 26 28 28 28 26 23 23 23 20 23 29 Processor 1 | . . . . . . 6 . . . . . Hackware 1 | . . . . . 5 6 . . . . . Protection 6 | . . . . . 4 5 7 7 12 6 3 Energy Gun 1 | . 14 . . . 4 . . . . 1 . Energy Cannon 2 | . . . . . 1 10 . . . . 14 Ballistic Gun 9 | . 14 14 14 . 10 3 14 15 10 10 . Ballistic Cannon 1 | . . 13 14 14 . . . . . . . Naked Turns . | . . . . . . . . . . . . Heaviest Build 147 | 12 26 27 35 41 89 119 133 133 147 144 147 Greatest Support 84 | 40 40 40 40 40 65 65 66 69 69 84 84 Greatest Overweight (x) 4 | 1 . . . 4 3 1 2 2 2 4 2 Average Overweight (x) 1 | . . . . 1 . 1 1 1 1 1 1 Largest Inventory Capacity 28 | 6 12 12 14 14 24 28 28 28 28 28 28 Average Capacity 23 | 5 11 12 13 14 19 26 28 28 25 28 27 Most Carried 28 | 6 12 12 14 14 24 28 28 28 28 28 28 Average Carried 22 | 3 9 11 12 13 17 26 27 27 25 25 26 Final Capacity 28 | 6 12 12 14 14 24 28 28 28 28 28 28 Final Carried 28 | 6 12 12 14 10 24 28 28 28 28 28 26 Class Distribution -------------------- 75% | Hauler-Mutant 16% | Mutant Dominant Class ---------------- Mutant | -10/Materials Mutant | -10/Mines Mutant | -10/Exiles Mutant | -9/Mines Hauler-Mutant | -8/Materials Hauler-Mutant | -7/Factory Hauler-Mutant | -7/Lower Caves Hauler-Mutant | -7/Lower Caves Hauler-Mutant | -7/Zion Hauler-Mutant | -7/Deep Caves Hauler-Mutant | -6/Proximity Caves Resources | -11 -10 -10 -10 -9 -8 -7 -7 -7 -7 -7 -6 ----------- Run | Scr Mat Min Exi Min Mat Fac Low Low Zio Dee Pro Matter Collected 4854 | 262 99 41 . 160 1147 464 512 74 1179 778 138 Remotely . | . . . . . . . . . . . . Salvage Created 5762 | 53 514 89 . 14 1600 1051 437 59 409 801 735 Parts 312 | 1 47 5 . . 91 50 16 1 45 21 35 Haulers Intercepted 8 | . 2 . . . 4 2 . . . . . Recyclers Shooed 1 | . . . . . . 1 . . . . . Parts Field Recycled . | . . . . . . . . . . . . Retrieved Matter . | . . . . . . . . . . . . Parts Self-Destructed 59 | . . . . . . . 17 1 6 . 35 Prevented 2 | . . . . . . . 2 . . . . Kills | -11 -10 -10 -10 -9 -8 -7 -7 -7 -7 -7 -6 ------- Run | Scr Mat Min Exi Min Mat Fac Low Low Zio Dee Pro Combat Hostiles Destroyed 128 | . 11 3 . 8 24 11 9 . 2 48 12 Melee 3 | . . . . . . . . . . 3 . Guns 61 | . 11 . . . 22 6 9 . 2 10 1 Cannons 20 | . . 3 . . 2 4 . . . . 11 AOE 43 | . . . . 8 . . . . . 35 . Classes Destroyed 20 | 1 5 . . 1 5 1 1 . 3 2 1 Worker 4 | . . . . . 1 3 . . . . . Builder 3 | . . . . . 2 1 . . . . . Hauler 8 | . 2 . . . 4 2 . . . . . Recycler 6 | 1 1 . . . . 4 . . . . . Operator 4 | . 1 . . . 3 . . . . . . Drone 1 | . . . . . . . . . . . 1 Watcher 4 | . 1 . . . 1 2 . . . . . Swarmer 9 | . 6 1 . . . . 2 . . . . Grunt 37 | . 5 2 . . 17 5 3 . . . 5 Brawler 4 | . . . . . 1 1 2 . . . . Duelist 2 | . . . . . . . 1 . . . 1 Sentry 4 | . . . . . 2 1 1 . . . . Hunter 10 | . . . . . 4 . . . . . 6 Programmer 4 | . . . . . . 4 . . . . . Zionite 30 | . . . . . . . . . 30 . . Z-Technician 4 | . . . . . . . . . . 4 . Z-Light 5 | . . . . . . . . . . 5 . Tinkerer 2 | . . . . . . . . . 2 . . Assembled 47 | . . . . 8 . . . . . 39 . Golem 4 | . . . . . . . . . . 4 . Mutant 1 | . . . . . . . . . 1 . . Best Kill Streak 36 | 1 3 2 . 7 6 7 4 . 6 36 3 Combat Bots Only 36 | . 3 2 . 7 5 5 4 . 1 36 3 Max Kills in Single Turn 11 | 1 1 1 . 2 2 2 1 . 3 11 2 Gunslinging 1 | . . . . . 1 . . . . . . Exploded 11 | . . . . 2 . . . . . 11 . Melee 1 | . . . . . . . . . . 1 . Uniques/NPCs Destroyed 2 | . . . . . . . . . 2 . . 12-ASH (-7/Zion) Imprinter (-7/Zion) Combat | -11 -10 -10 -10 -9 -8 -7 -7 -7 -7 -7 -6 -------- Run | Scr Mat Min Exi Min Mat Fac Low Low Zio Dee Pro Damage Taken 9883 | . 306 102 . 773 1706 666 1395 . 230 3453 1252 Core 1204 | . 65 11 . 126 288 117 69 . 14 391 123 Absorbed by Shields . | . . . . . . . . . . . . Core Remaining (%) 55 | 100 . . . 19 47 . . . . . . Volleys Fired 412 | 2 39 9 . 13 96 38 28 3 83 68 33 Largest 2 | 2 2 2 . 1 2 2 2 2 2 2 2 Hottest 136 | 60 60 60 . 33 122 136 53 53 64 80 50 Shots Fired 715 | 4 78 18 . 13 192 74 55 6 97 121 57 Gun 508 | 4 78 10 . . 168 36 55 6 35 113 3 Cannon 124 | . . 8 . . 24 38 . . . . 54 Launcher 83 | . . . . 13 . . . . 62 8 . Special . | . . . . . . . . . . . . Kinetic 410 | 2 39 17 . . 141 36 55 6 35 76 3 Thermal 170 | . . . . . 41 38 . . . 37 54 Explosive 83 | . . . . 13 . . . . 62 8 . Electromagnetic 52 | 2 39 1 . . 10 . . . . . . Robot Hit Streak 23 | 2 8 6 . 2 15 14 14 4 8 23 12 Robot Miss Streak 3 | 2 3 3 . 1 3 2 2 1 2 3 2 Penetration Max 1 | . . . . . 1 1 1 . . . . Secondary Targets 7 | . 1 . . . 1 2 . . . 3 . Max Gunslinging Chain 1 | . 1 . . . 1 1 . . . 1 . Shots Hit Robots 490 | 2 44 11 . 3 142 54 38 4 41 113 38 Core Hits 366 | 2 26 6 . 13 61 31 17 1 44 148 17 Critical Hits 20 | . . . . . 2 11 1 . 2 4 . Critical Kills 9 | . . . . . 2 5 . . 1 1 . Critical Parts Destroyed 8 | . . . . . . 5 1 . . 2 . Melee Attacks 225 | . . . . . . 1 1 . 176 47 . Impact 2 | . . . . . . 1 1 . . . . Slashing 223 | . . . . . . . . . 176 47 . Piercing . | . . . . . . . . . . . . Sneak Attacks 5 | . . . . . . . . . . 5 . Combat Hostiles . | . . . . . . . . . . . . Follow-up Attacks . | . . . . . . . . . . . . Damage Inflicted 18844 | 31 501 128 . 582 2833 1489 813 74 2761 7810 1822 Guns 8586 | 31 501 41 . . 2384 890 813 74 700 3111 41 Cannons 2876 | . . 87 . . 411 597 . . . . 1781 Explosions 5837 | . . . . 582 38 . . . 2061 3156 . Melee 1479 | . . . . . . . . . . 1479 . Ramming 66 | . . . . . . 2 . . . 64 . Kinetic 7160 | 16 141 115 . . 1962 890 813 74 700 2408 41 Thermal 3783 | . . . . . 702 597 . . . 703 1781 Explosive 5799 | . . . . 582 . . . . 2061 3156 . Electromagnetic 557 | 15 360 13 . . 169 . . . . . . Impact . | . . . . . . . . . . . . Slashing 1479 | . . . . . . . . . . 1479 . Piercing . | . . . . . . . . . . . . Highest Corruption 6 | . . . . . . 3 6 6 6 . . Average Corruption 4 | . . . . . . 2 5 6 6 . . Corruption Purged . | . . . . . . . . . . . . Effects 122 | . . . . . . 23 77 21 1 . . Message Errors 30 | . . . . . . 3 19 8 . . . Matter Fused 35 | . . . . . . 8 23 3 1 . . Heat Flow Errors 11 | . . . . . . 2 5 4 . . . Energy Discharges 17 | . . . . . . 6 9 2 . . . Parts Rejected 1 | . . . . . . . 1 . . . . Data Loss (minor) 13 | . . . . . . 1 10 2 . . . Data Loss (major) 5 | . . . . . . . 3 2 . . . Misfires 5 | . . . . . . . 5 . . . . Targeting Errors 3 | . . . . . . 1 2 . . . . Weapon Failures 2 | . . . . . . 2 . . . . . Overload Shots . | . . . . . . . . . . . . Overflow Damage 420 | . . . . 31 10 22 . . 56 245 56 Projectiles 80 | . . . . . 2 22 . . . . 56 Explosions 142 | . . . . 31 8 . . . 56 47 . Melee 198 | . . . . . . . . . . 198 . Knockbacks 3 | . . 1 . . 2 . . . . . . Impact . | . . . . . . . . . . . . Kinetic 3 | . . 1 . . 2 . . . . . . Secondary . | . . . . . . . . . . . . Self-Inflicted Damage 195 | . . . . 89 37 . . . 14 55 . Shots 8 | . . . . 4 1 . . . 1 2 . Rammed 9 | . . . . . . 1 . . . 8 . Targets Rammed 9 | . . . . . . 1 . . . 8 . Kicked . | . . . . . . . . . . . . Crushed . | . . . . . . . . . . . . Highest Temperature 280 | 20 97 50 . 17 52 178 280 255 127 156 129 Average Temperature 43 | 15 25 24 . 9 10 27 88 101 32 32 35 Received Heat Transfer 2417 | . 87 42 . 100 729 225 408 . 9 664 153 Siege Activations . | . . . . . . . . . . . . Robots Corrupted . | . . . . . . . . . . . . Combat Hostiles . | . . . . . . . . . . . . Parts Fried 2 | . . . . . 2 . . . . . . Impact Corruptions 1 | . . . . . . . . . . 1 . Robots Melted 1 | . . . . . . 1 . . . . . Combat Hostiles 1 | . . . . . . 1 . . . . . Parts Melted 6 | . . . . . 2 3 . . . . 1 Heat Transferred 4338 | . . . . . 1316 999 . . . 1073 950 Parts Sabotaged . | . . . . . . . . . . . . Parts Stolen . | . . . . . . . . . . . . Parts Stripped . | . . . . . . . . . . . . Power Chain Reactions 1 | . . . . . 1 . . . . . . Missiles Intercepted . | . . . . . . . . . . . . Alert | -11 -10 -10 -10 -9 -8 -7 -7 -7 -7 -7 -6 ------- Run | Scr Mat Min Exi Min Mat Fac Low Low Zio Dee Pro Peak Influence 338 | 5 198 51 . 15 338 191 . . . . . Initial 36 | . 3 11 . . . 36 . . . . . Average 77 | 1 70 24 . 4 141 57 . . . . . Maximum Alert Level 1 | . . . . . 1 . . . . . . Low Security (%) 89 | 100 100 100 . 100 65 100 . . . . . Level 1 10 | . . . . . 34 . . . . . . Level 2 . | . . . . . . . . . . . . Level 3 . | . . . . . . . . . . . . Level 4 . | . . . . . . . . . . . . Level 5 . | . . . . . . . . . . . . High Security . | . . . . . . . . . . . . Max Security . | . . . . . . . . . . . . Squads Dispatched 12 | . 1 . . . 5 6 . . . . . Investigation 4 | . . . . . 2 2 . . . . . Extermination 3 | . . . . . . 3 . . . . . Reinforcement 5 | . 1 . . . 3 1 . . . . . Assault . | . . . . . . . . . . . . Garrison . | . . . . . . . . . . . . Intercept . | . . . . . . . . . . . . Construction Impeded . | . . . . . . . . . . . . Haulers Reinforced 1 | . . . . . . 1 . . . . . Stealth | -11 -10 -10 -10 -9 -8 -7 -7 -7 -7 -7 -6 --------- Run | Scr Mat Min Exi Min Mat Fac Low Low Zio Dee Pro Distress Signals 4 | . . . . . 4 . . . . . . Communications Jammed . | . . . . . . . . . . . . Distress Signals . | . . . . . . . . . . . . Times Spotted 203 | . 19 4 . 10 38 16 19 . 32 49 16 Peak Tracking Total 34 | . 3 3 . 8 6 4 4 . 4 34 3 Tactical Retreats 15 | . . 1 . . . . 2 . 9 2 1 Traps | -11 -10 -10 -10 -9 -8 -7 -7 -7 -7 -7 -6 ------- Run | Scr Mat Min Exi Min Mat Fac Low Low Zio Dee Pro Traps Triggered 3 | . . . . . 2 1 . . . . . Indirectly . | . . . . . . . . . . . . Trap Hack Attempts . | . . . . . . . . . . . . Triggered . | . . . . . . . . . . . . Disarmed . | . . . . . . . . . . . . Reprogrammed . | . . . . . . . . . . . . Reused . | . . . . . . . . . . . . Traps Extracted . | . . . . . . . . . . . . Installed . | . . . . . . . . . . . . Triggered 2 | . . . . . . . 1 . . . 1 Machines | -11 -10 -10 -10 -9 -8 -7 -7 -7 -7 -7 -6 ---------- Run | Scr Mat Min Exi Min Mat Fac Low Low Zio Dee Pro Machines Disabled 7 | . 1 . . 1 1 . . . 1 3 . Max in Single Turn 1 | . 1 . . 1 1 . . . 1 1 . Machines Sabotaged . | . . . . . . . . . . . . Garrisons Compromised . | . . . . . . . . . . . . Overloaded Fab Kills . | . . . . . . . . . . . . Fab Network Shutdowns . | . . . . . . . . . . . . Hacking | -11 -10 -10 -10 -9 -8 -7 -7 -7 -7 -7 -6 --------- Run | Scr Mat Min Exi Min Mat Fac Low Low Zio Dee Pro Machines Accessed 27 | . 6 1 2 . 7 9 2 . . . . Terminals 12 | . 5 . . . 4 3 . . . . . Fabricators 2 | . . . . . . 2 . . . . . Repair Stations 5 | . 1 . . . 2 2 . . . . . Recycling Units . | . . . . . . . . . . . . Scanalyzers 3 | . . . . . 1 2 . . . . . Garrison Access . | . . . . . . . . . . . . Total Hacks 89 | . 22 1 2 . 25 33 6 . . . . Successful 63 | . 13 1 2 . 20 21 6 . . . . Failed 26 | . 9 . . . 5 12 . . . . . Catastrophic 6 | . 1 . . . . 5 . . . . . Database Lockouts . | . . . . . . . . . . . . Manual 27 | . 5 . 1 . 7 10 . . 4 . . Terminals 36 | . 15 . . . 12 9 . . . . . Fabricators 11 | . . . . . . 11 . . . . . Repair Stations 24 | . 7 . . . 9 8 . . . . . Recycling Units . | . . . . . . . . . . . . Scanalyzers 9 | . . . . . 4 5 . . . . . Garrison Access . | . . . . . . . . . . . . Terminal Hacks 24 | . 7 1 2 . 6 2 6 . . . . Record 6 | . . . 1 . . . 5 . . . . Part Schematic 1 | . 1 . . . . . . . . . . Open Door 2 | . . 1 . . . . 1 . . . . Branch Access Points 3 | . 1 . . . 1 1 . . . . . Unreport Threat 3 | . 1 . . . 2 . . . . . . Locate Traps 3 | . 1 . . . 2 . . . . . . Transport Status 1 | . 1 . . . . . . . . . . Hauler Manifests 2 | . 1 . . . 1 . . . . . . Zone Layout 2 | . 1 . . . . 1 . . . . . EX-Prototype ID Bank 1 | . . . 1 . . . . . . . . Fabricator Hacks 6 | . . . . . . 6 . . . . . Load Schematic 1 | . . . . . . 1 . . . . . Build 5 | . . . . . . 5 . . . . . Repair Station Hacks 20 | . 5 . . . 8 7 . . . . . Scan Component 11 | . 3 . . . 4 4 . . . . . Repair 9 | . 2 . . . 4 3 . . . . . Recycling Unit Hacks . | . . . . . . . . . . . . Scanalyzer 7 | . . . . . 4 3 . . . . . Insert Component 4 | . . . . . 2 2 . . . . . Analyze 3 | . . . . . 2 1 . . . . . Garrison Access Hacks . | . . . . . . . . . . . . Unauthorized Hacks 6 | . 1 . . . 2 3 . . . . . Terminals 4 | . 1 . . . 2 1 . . . . . Track 1 | . 1 . . . . . . . . . . Assimilate 3 | . . . . . 2 1 . . . . . Fabricators 2 | . . . . . . 2 . . . . . Prioritize 1 | . . . . . . 1 . . . . . Siphon 1 | . . . . . . 1 . . . . . Repair Stations . | . . . . . . . . . . . . Recycling Units . | . . . . . . . . . . . . Scanalyzers . | . . . . . . . . . . . . Garrison Access . | . . . . . . . . . . . . Data Cores Recovered . | . . . . . . . . . . . . Used . | . . . . . . . . . . . . Hacking Detections 20 | . 6 . . . 6 8 . . . . . Full Trace Events 5 | . 1 . . . 2 2 . . . . . Feedback Events . | . . . . . . . . . . . . Feedback Blocked . | . . . . . . . . . . . . Robot Schematics Acquired . | . . . . . . . . . . . . Robots Built 6 | . . . . . . 6 . . . . . Matter 504 | . . . . . . 504 . . . . . Time 268 | . . . . . . 268 . . . . . Total Robot Build Rating 24 | . . . . . . 24 . . . . . Part Schematics Acquired 4 | . 1 . . . 2 1 . . . . . Parts Built 3 | . . . . . . 3 . . . . . Matter 254 | . . . . . . 254 . . . . . Time 101 | . . . . . . 101 . . . . . Total Part Build Rating 3 | . . . . . . 3 . . . . . Parts Repaired 9 | . 2 . . . 4 3 . . . . . Time 311 | . 52 . . . 132 127 . . . . . Parts Recycled . | . . . . . . . . . . . . Recycled Matter . | . . . . . . . . . . . . Retrieved Matter . | . . . . . . . . . . . . Retrieved Components . | . . . . . . . . . . . . Parts Scanalyzed 3 | . . . . . 2 1 . . . . . Part Schematics Acquired 3 | . . . . . 2 1 . . . . . Parts Damaged . | . . . . . . . . . . . . Bothacking | -11 -10 -10 -10 -9 -8 -7 -7 -7 -7 -7 -6 ------------ Run | Scr Mat Min Exi Min Mat Fac Low Low Zio Dee Pro Used RIF Installer . | . . . . . . . . . . . . Robots Hacked . | . . . . . . . . . . . . Non-combat . | . . . . . . . . . . . . Combat . | . . . . . . . . . . . . Robot Hacks Applied . | . . . . . . . . . . . . Relay Couplers Released 4 | . . . . . . 4 . . . . . Programmers 4 | . . . . . . 4 . . . . . Robots Rewired . | . . . . . . . . . . . . Allies Hacked . | . . . . . . . . . . . . Hacks Repelled . | . . . . . . . . . . . . Allies | -11 -10 -10 -10 -9 -8 -7 -7 -7 -7 -7 -6 -------- Run | Scr Mat Min Exi Min Mat Fac Low Low Zio Dee Pro Total Allies 7 | . . . . . . 7 . . . . . Largest Group 6 | . . . . . . 6 6 . . . . Highest-Rated Group 180 | . . . . . . 180 180 . . . . Highest-Rated Ally 30 | . . . . . . 30 30 . . . . Total Orders 8 | . . . . . 1 . . . 3 . 4 RETURN 8 | . . . . . 1 . . . 3 . 4 Ally Attacks 73 | . . . . . 1 . 2 . 41 . 29 Total Damage 465 | . . . . . 30 . 36 . 165 . 234 Kills 3 | . . . . . 1 . 1 . 1 . . Allies Corrupted 1 | . . . . . . . 1 . . . . Allies Melted . | . . . . . . . . . . . . Intel | -11 -10 -10 -10 -9 -8 -7 -7 -7 -7 -7 -6 ------- Run | Scr Mat Min Exi Min Mat Fac Low Low Zio Dee Pro Robot Analysis Total . | . . . . . . . . . . . . Derelict Logs Recovered 5 | . . 1 . . . . 1 1 1 . 1 Drone Launches 26 | . . . . . 2 . . . 13 . 11 Drone Recoveries 24 | . . . . . 2 . . . 12 . 10 Exploration | -11 -10 -10 -10 -9 -8 -7 -7 -7 -7 -7 -6 ------------- Run | Scr Mat Min Exi Min Mat Fac Low Low Zio Dee Pro Turns Passed 19160 | 114 1020 868 561 445 2235 2468 2522 990 4132 2801 1004 Spaces Moved 8782 | 63 509 523 350 233 907 1118 1208 533 1795 1124 419 Core 9 | 9 . . . . . . . . . . . Treads 7950 | 54 509 523 350 205 619 1118 1208 533 1795 1036 . Legs 795 | . . . . . 288 . . . . 88 419 Wheels 28 | . . . . 28 . . . . . . . Hover . | . . . . . . . . . . . . Flight . | . . . . . . . . . . . . Fastest Speed 50 | 50 160 160 160 110 150 175 178 180 180 169 169 Average Speed 179 | 149 160 160 160 168 161 177 199 183 187 191 169 Slowest Speed 350 | 160 160 160 160 180 210 178 203 203 203 350 190 Overloaded Moves . | . . . . . . . . . . . . Propulsion Burnouts . | . . . . . . . . . . . . Robots Hopped . | . . . . . . . . . . . . Cave-ins Triggered . | . . . . . . . . . . . . Exploration Rate (%) 62 | 5 88 93 70 32 63 20 96 65 81 81 54 Regions Visited 11 Branch Regions 8 Pre-discovered Areas 4 | . . . 1 . . . . . 3 . . Known Exits Taken 3 | . 1 . 1 . . 1 . . . . . Unknown Exits Taken 8 | 1 . 1 . 1 1 . 1 1 1 1 . Scrap Searched 12 | . . 1 . 1 . . 5 2 3 . . Spaces Dug 54 | . . . . 33 . 1 1 . 6 7 6 Terrain Destroyed 326 | . . . . 112 9 2 2 . 167 17 17 Melee 6 | . . . . . . 1 1 . . 4 . Projectile 37 | . . . . . 4 1 1 . 1 13 17 AOE 283 | . . . . 112 5 . . . 166 . . Terrain Rammed . | . . . . . . . . . . . . Walls Destroyed . | . . . . . . . . . . . . Machines Disabled . | . . . . . . . . . . . . Actions | -11 -10 -10 -10 -9 -8 -7 -7 -7 -7 -7 -6 --------- Run | Scr Mat Min Exi Min Mat Fac Low Low Zio Dee Pro Total 11293 | 76 649 540 352 274 1491 1542 1294 543 2237 1634 661 Wait 1341 | . 76 1 . 19 346 295 19 . 126 284 175 Move 8771 | 62 508 522 349 232 906 1117 1207 532 1794 1123 419 Hop . | . . . . . . . . . . . . Pick Up 154 | 6 12 4 1 1 41 26 10 3 18 25 7 Fast Attach 58 | 6 1 . . 1 17 9 7 . 2 13 2 Attach 51 | . 1 1 . 4 12 4 4 1 2 16 6 Detach 16 | . . . . . 4 2 . . . 8 2 Swap 83 | . 4 . 1 2 30 17 4 1 12 8 4 Drop 172 | . 8 3 1 2 39 32 14 3 24 33 13 Fire 412 | 2 39 9 . 13 96 38 28 3 83 68 33 Melee 225 | . . . . . . 1 1 . 176 47 . Ram . | . . . . . . . . . . . . Kick . | . . . . . . . . . . . . Crush 9 | . . . . . . 1 . . . 8 . Escape Stasis . | . . . . . . . . . . . . Rewire 1 | . . . . . . . . . . 1 . Trap . | . . . . . . . . . . . . Miscellaneous . | . . . . . . . . . . . . Route ------- -11/Scrapyard -10/Materials (discovered 5 exits: [*Mat x3] / *Min x2) -10/Mines (discovered 3 exits: [*Mat x2] / *Exi) -10/Exiles (discovered 2 exits: *Min x2) -9/Mines -8/Materials (discovered 2 exits: *Fac x2) -7/Factory (discovered 5 exits: *Fac / Sto x2 / *Low x2) -7/Lower Caves -7/Lower Caves (discovered 2 exits: Fac / *Zio) -7/Zion (discovered 2 exits: [*Dee] / [*Pro]) -7/Deep Caves -6/Proximity Caves (discovered 1 exit: *Fac) History --------- Turn | Location | Event 10 | -11/Scrapyard | Discovered new exit (range 15) 115 | -11/Scrapyard | Entered Materials 133 | -10/Materials | Discovered new exit (range 11) 318 | -10/Materials | Build established: Mutant 375 | -10/Materials | Discovered new exit (range 4) 481 | -10/Materials | Repaired Lgt. Treads 508 | -10/Materials | Repaired Lgt. Treads 588 | -10/Materials | Discovered new exit (range 4) 606 | -10/Materials | Discovered new exit (range 16) 718 | -10/Materials | Identified exit to Mines 898 | -10/Materials | Discovered new exit (range 5) 1135 | -10/Materials | Entered Mines 1197 | -10/Mines | Received a Rocket Launcher from a helpful Derelict 1426 | -10/Mines | Discovered new exit (range 5) 1440 | -10/Mines | Found the Drone Emporium 1449 | -10/Mines | Found Prototype Device 1672 | -10/Mines | Discovered new exit (range 4) 1779 | -10/Mines | Found a damaged Exp. Sensor Array with a note attached 1783 | -10/Mines | Found Prototype Device 1854 | -10/Mines | Deemed a non-threat by the Exiles lab entrance 1854 | -10/Mines | Discovered new exit (range 5) 1889 | -10/Mines | Found a hidden stash of uninstalled traps 2003 | -10/Mines | Entered Exiles 2004 | -10/Exiles | Identified exit to Mines 2042 | -10/Exiles | Met 8R-AWN 2069 | -10/Exiles | Met EX-HEX 2131 | -10/Exiles | Met EX-DEC 2139 | -10/Exiles | Learned location of Zion (-7) 2346 | -10/Exiles | Met EX-BIN 2368 | -10/Exiles | Aligned with FarCom system 2370 | -10/Exiles | Given EX-Vault access code 2407 | -10/Exiles | Opened EX-Vault 2416 | -10/Exiles | Found Firepult 2451 | -10/Exiles | Warned to stay clear of 0b10 Research branches 2564 | -10/Exiles | Left Exiles lab with Firepult 2564 | -10/Exiles | Entered Mines 2597 | -9/Mines | Assembled infested the area 2602 | -9/Mines | Assisted by a Guerilla fighting off Assembled 2660 | -9/Mines | Destroyed 7 combat bots 2780 | -9/Mines | Discovered new exit (range 8) 2985 | -9/Mines | Core integrity fell below 50% 3008 | -9/Mines | Core integrity fell below 20% 3009 | -9/Mines | Entered Materials 3009 | -8/Materials | Evolved 4 slots: Propulsion x1, Utility x3 3009 | -8/Materials | Identified Exp. Sensor Array 3010 | -8/Materials | Identified Thief Drone Bay 3036 | -8/Materials | Lost 5 parts (3n2w) 3053 | -8/Materials | Repaired Lgt. Treads 3134 | -8/Materials | Repaired Exp. Sensor Array 3638 | -8/Materials | Repaired Lgt. Armor Plating 3652 | -8/Materials | Repaired Lgt. Treads 3781 | -8/Materials | Build established: Scavenger-Mutant 4290 | -8/Materials | Build established: Hauler-Mutant 4318 | -8/Materials | Discovered new exit (range 10) 4883 | -8/Materials | Core integrity fell below 50% 5079 | -8/Materials | Discovered new exit (range 6) 5244 | -8/Materials | Entered Factory 5244 | -7/Factory | Evolved 2 slots: Utility x2 5894 | -7/Factory | Fabricated Hcp. Storage Unit (x1) 5922 | -7/Factory | Fabricated Hcp. Storage Unit (x1) 5948 | -7/Factory | Fabricated Hcp. Storage Unit (x1) 6234 | -7/Factory | Discovered new exit (range 3) 6618 | -7/Factory | Repaired Adv. Treads 6670 | -7/Factory | Repaired Adv. Beam Cannon 7201 | -7/Factory | Identified exit to Storage 7201 | -7/Factory | Identified exit to Lower Caves 7355 | -7/Factory | Fabricated L-41 Fighter? 7508 | -7/Factory | Fabricated L-41 Fighter? 7672 | -7/Factory | Repaired Imp. Light Armor Plating 7712 | -7/Factory | Entered Lower Caves 7712 | -7/Lower Caves | Accompanied by 6 allies 8010 | -7/Lower Caves | Attracted the attention of an 0b10 checkpoint 8707 | -7/Lower Caves | Encountered a Warlord checkpoint 9318 | -7/Lower Caves | Learned 8 Factory zone layouts 9318 | -7/Lower Caves | Learned Extension emergency access door positions 10153 | -7/Lower Caves | Learned Factory interactive machine intel 10205 | -7/Lower Caves | Discovered new exit (range 8) 10234 | -7/Lower Caves | Entered another Lower Caves area 10235 | -7/Lower Caves | Identified exit to Factory 10795 | -7/Lower Caves | Encountered a Warlord checkpoint 10812 | -7/Lower Caves | Discovered new exit (range 14) 11089 | -7/Lower Caves | Learned Factory trap positions 11224 | -7/Lower Caves | Entered Zion 11275 | -7/Zion | System corruption cleaned by Quarantine Array 11415 | -7/Zion | Given A8's code to call for help 11476 | -7/Zion | Discovered new exit (range 16) 11752 | -7/Zion | Learned location of Recycling (-7) 11901 | -7/Zion | Learned location of Warlord (-4) 12058 | -7/Zion | Found Prototype Device 12266 | -7/Zion | Given the Hacking Drone Bay 12266 | -7/Zion | Identified Mobile Refinery Mk. CCLXVII 12292 | -7/Zion | Found Prototype Device 12293 | -7/Zion | Identified Hacking Drone Bay 12374 | -7/Zion | Learned location of Quarantine (-2) 12538 | -7/Zion | Learned Factory non-interactive machine intel 13843 | -7/Zion | Attacked by Zionites 14576 | -7/Zion | 12-ASH came to Zion's defense 14589 | -7/Zion | Found Prototype Ballistic Gun 14589 | -7/Zion | Identified 12-ASH's Boomstick 14621 | -7/Zion | Destroyed 12-ASH 14743 | -7/Zion | Allies destroyed Imprinter 14775 | -7/Zion | Extracted access codes from Imprinter's data core 15305 | -7/Zion | Opened final containment barrier to the Deep Caves 15344 | -7/Zion | Discovered new exit (range 5) 15348 | -7/Zion | Saw the warning signs outside the Deep Caves entrance 15356 | -7/Zion | Entered Deep Caves 15872 | -7/Deep Caves | Z-Facility disabled 16104 | -7/Deep Caves | Found Prototype Protection 16104 | -7/Deep Caves | Identified Zio. Heavy Carapace 16108 | -7/Deep Caves | Found Prototype Protection 16110 | -7/Deep Caves | Identified Zio. Weapon Casing 16215 | -7/Deep Caves | Found Zio. Heavy Carapace 16805 | -7/Deep Caves | Discovered new exit (range 6) 16896 | -7/Deep Caves | Spotted as-94196 16930 | -7/Deep Caves | Core integrity fell below 50% 17023 | -7/Deep Caves | Core integrity fell below 20% 17025 | -7/Deep Caves | Lost 13 parts (1p4n5u3w) 17034 | -7/Deep Caves | Destroyed as-94196 17618 | -7/Deep Caves | Exposed GOLEM chamber 17623 | -7/Deep Caves | Found GOLEM Unit 17657 | -7/Deep Caves | Found GOLEM Unit 17662 | -7/Deep Caves | Found GOLEM Unit 17699 | -7/Deep Caves | Found GOLEM Unit 17724 | -7/Deep Caves | Found GOLEM Unit 17975 | -7/Deep Caves | Found GOLEM Unit 17980 | -7/Deep Caves | Triggered Deep Caves wall 17989 | -7/Deep Caves | Spotted AS-87788 17998 | -7/Deep Caves | Spotted AS-41388 18022 | -7/Deep Caves | Build established: Hauler-Golem 18024 | -7/Deep Caves | Destroyed 36 combat bots 18116 | -7/Deep Caves | Found Surveybot 24 Chip 18119 | -7/Deep Caves | Found Unknown Device 18157 | -7/Deep Caves | Entered Proximity Caves 18159 | -6/Proximity Caves | Identified Surveybot 24 Scanner 18559 | -6/Proximity Caves | Build established: Hauler-Mutant 19161 | -6/Proximity Caves | Destroyed by S-27 Virus with Autogun Last Messages --------------- 18986_ Thief Drone released from Thief Drone Bay. 18986_ P-60 Hacker Unknown Energy Gun severed. 18990_ P-60 Hacker Unknown Energy Gun ripped off. 18991_ Slug penetrates Terminal. 18991_ Slug penetrates Wall. 18994_ Thief Drone delivers Unknown Energy Gun. 18994_ Thief Drone retrieved by Thief Drone Bay. 19001_ Slug penetrates Wall. 19012_ Destroyed Lgt. Angular Momentum Engine. 19012_ Destroyed Gravmag System. 19016_ Penetrated by Slug. 19016_ Slug penetrates Wall. 19020_ Penetrated by Slug. 19021_ Destroyed Hvy. Assault Rifle. 19027_ Penetrated by Slug. 19027_ H-66 Slayer destroyed. 19032_ Targeting Computer fries itself beyond repair. 19043_ Flexi-carbon Leg fries itself beyond repair. 19086_ Acquired 10 matter. 19160_ Phase Shifter destroyed. Map ----- +----------------------------------------------------+ | ?????????????????????????????????????????????????? | | ?????????????????????????????????????????????????? | | ?????????????????????????????????????????????????? | | ?????????????????????????????????????????????????? | | ?????????????????????????????????????????????????? | | ?????????????????????????????????????????????????? | | ?????????????????????????????????????????????????? | | ?????????????????????????????????????????????????? | | ?????????????????????????????????????????????????? | | ?????????????????????????????????????????????????? | | ?????????????????????????????????????????????????? | | ?????????????????????????????????????????????????? | | ?????????????????????????????? ????????????????? | | ????????????????????????????? #???????????????? | | ????????????????????????????? ????????????????? | | ??????????????????????#####?#s #????????????????? | | ?????????????????????? ## #????????????????? | | ????? ??????????????? ss ###??????????????? | | ?? ?? ??????????????? #??????????????? | | ? ??? ?????????????? #??????????????? | | ???? ?????????????# #??????????????? | | ?????? ?????????????# ##?????????????? | | ?????# ?????????????## ??????????????? | | ????## ?????????????# ?????????????????? | | ????# ?????????????## < #???????????????????? | | ????# ??????####???# @ #????????????????????? | | ????# #?????## #???# ##????????????????????? | | ##### ####### #???## ##?????????????????????? | | ? !! ## ## ###### ###??????????????????????? | | ???##%! "% #??????????????????????? | | ??## *! #??????????????????? | | ### ######## #????????????????? | | % #??????? #???????????????? | | ### ### ! #???????? #??????????????? | | ??#####?# ##???????? #######??????????????? | | ????????#########??????????##????????????????????? | | ?????????????????????????????????????????????????? | | ?????????????????????????????????????????????????? | | ?????????????????????????????????????????????????? | | ?????????????????????????????????????????????????? | | ?????????????????????????????????????????????????? | | ?????????????????????????????????????????????????? | | ?????????????????????????????????????????????????? | | ?????????????????????????????????????????????????? | | ?????????????????????????????????????????????????? | | ?????????????????????????????????????????????????? | | ?????????????????????????????????????????????????? | | ?????????????????????????????????????????????????? | | ?????????????????????????????????????????????????? | | ?????????????????????????????????????????????????? | +----------------------------------------------------+ Best States ------------- Heat Dissipation 64 Energy Generation 27 Energy Capacity 1100 Matter Stores 300 Matter Capacity 300 Sight Range 16 Robot Scan Range 30 Terrain Scan Range 24 Terrain Scan Density 10 Armor Coverage 1200 Resistance: TH 15 Weapon Shielding 100 Weapon Cycling 15 Phase Shifting 5 Evasion (%) 45 Target Analysis 5 Recoil Reduction 3 Offensive Hacking 10 Defensive Hacking 10 Item Schematics ----------------- Hcp. Storage Unit | -10/Materials | Hacked Hacking Suite | -8/Materials | Scanalyzed Carbon-fiber Leg | -8/Materials | Scanalyzed Exp. Sensor Array | -7/Factory | Scanalyzed Robot Schematics ------------------ None Fabricated ------------ Hcp. Storage Unit | x1 | -7/Factory Hcp. Storage Unit | x1 | -7/Factory Hcp. Storage Unit | x1 | -7/Factory L-41 Fighter | x3 | -7/Factory | Preloaded L-41 Fighter | x3 | -7/Factory | Preloaded Alien Tech Used ----------------- None Achievements -------------- None Challenges ------------ None Game ------ Seed FissionAssemblyUnit Manual? 0 Play Time 02:14:57 Cumulative 247.1 hours Start 2020.11.05 @ 15:28:55 End 2020.11.05 @ 17:52:58 Sessions 1 Manual Loads 0 Difficulty Rogue Special Mode Halloween2020/ForbiddenLore Game No. 103 Rogue 103 Adventurer 0 Explorer 0 Win Type - Total 7 Types 5/0/1/1/0/0/0/0/0 Lore% 53 Gallery% 84 Achievement% 64 Wizard Run 0 Options --------- ASCII 0 Keyboard 0 Movement Numpad Keybinds 0 Fullscreen 1 Font 18/SmallcapsGlow Map View 76x50 Tactical HUD 1 Map Filters NONE Filters NONE Steam 1 RUN: 2c870fbd-ea2e-411b-a871-c5055f99c0de